[Event "EYCC Open U12 2018"]
[Site "Riga"]
[Date "2018.08.20"]
[Round "1"]
[White "Murzin, Volodar"]
[Black "Zilakauskis, Steponas"]
[Result "1-0"]
[ECO "C00"]
[WhiteElo "2306"]
[BlackElo "1696"]
[Annotator "NA"]
[PlyCount "57"]
[EventDate "2018.08.20"]
[EventType "swiss"]
[EventCountry "LAT"]
[SourceTitle "playchess.com"]
[Source "ChessBase"]
[SourceQuality "1"]
[TimeControl "40/5400+30:1800+30"]

1. e4 {[%emt 0:00:00]} e6 {[%emt 0:00:00]} 2. d3 {[%emt 0:00:00]} d5 {[%emt 0:00:00]} 3. Nd2 {[%emt 0:00:00]} c5 {[%emt 0:00:12]} 4. Ngf3 {[%emt 0:00:00]} Nc6 {[%emt 0:00:26]} 5. g3 {[%emt 0:00:15]} g6 {[%emt 0:01:47]} 6. Bg2 {[%emt 0:00:10]} Bg7 {[%emt 0:00:18]} 7. O-O {[%emt 0:00:13]} Nf6 {[%emt 0:07:28]} 8. Re1 {[%emt 0:01:12]} O-O {[%emt 0:00:20] LiveBook: 213 Games} 9. c3 {[%emt 0:00:48]} Qc7 {[%emt 0:07:40]} 10. Nf1 {[%emt 0:03:04]} Rd8 {[%emt 0:03:06]} (10... d4 $11) 11. e5 {[%emt 0:03:44]} Nd7 $14 {[%emt 0:02:39]} 12. d4 {[%emt 0:00:59]} Nb6 {[%emt 0:04:06]} 13. Bg5 {[%emt 0:02:31]} Re8 {[%emt 0:04:08]} 14. h4 {[%emt 0:00:35]} h6 {[%emt 0:02:45]} 15. Bf4 {[%emt 0:00:11]} cxd4 {[%emt 0:02:38]} 16. cxd4 {[%emt 0:00:11]} Qe7 {[%emt 0:01:35]} 17. N1h2 {[%emt 0:01:42]} Bd7 {[%emt 0:03:20]} 18. b3 {[%emt 0:04:27]} f5 {[%emt 0:08:39]} 19. exf6 {[%emt 0:00:16]} Qxf6 {[%emt 0:00:12]} 20. Ng4 {[%emt 0:00:19]} Qf8 {[%emt 0:00:55]} 21. Nge5 {[%emt 0:01:28]} Nxe5 {[%emt 0:06:38]} 22. Nxe5 {[%emt 0:03:32]} Qf6 {[%emt 0:01:22]} 23. Qd2 {[%emt 0:00:11]} Kh7 {[%emt 0:01:23]} 24. Bf1 {[%emt 0:00:30]} Qf8 {[%emt 0:05:14]} 25. Bd3 {[%emt 0:00:17]} Bxe5 {[%emt 0:00:09]} 26. Rxe5 {[%emt 0:00:05]} Re7 {[%emt 0:08:04]} 27. Rh5 {[%emt 0:01:29]} Be8 {[%emt 0:00:24]} 28. Rxh6+ {[%emt 0:00:24]} Kg7 {[%emt 0:00:20]} 29. Be5+ {[%emt 0:00:07]} 1-0

[Event "EYCC Open U12 2018"]
[Site "Riga"]
[Date "2018.08.20"]
[Round "1"]
[White "Safin, Robert"]
[Black "Valvag, Torbjorn"]
[Result "1-0"]
[ECO "E01"]
[WhiteElo "2156"]
[BlackElo "1674"]
[Annotator "NA"]
[PlyCount "105"]
[EventDate "2018.08.20"]
[EventType "swiss"]
[EventCountry "LAT"]
[SourceTitle "playchess.com"]
[Source "ChessBase"]
[SourceQuality "1"]
[TimeControl "40/5400+30:1800+30"]

1. d4 {[%emt 0:00:00]} Nf6 {[%emt 0:00:00]} 2. c4 {[%emt 0:00:00]} e6 {[%emt 0:00:00]} 3. g3 {[%emt 0:00:00]} d5 {[%emt 0:00:04]} 4. Bg2 {[%emt 0:00:00]} Bb4+ {[%emt 0:00:23]} 5. Bd2 {[%emt 0:00:06] E01: Catalan: Early deviations} Bxd2+ {[%emt 0:00:05]} (5... Be7 6. Nf3 O-O 7. O-O Nbd7 8. b4 c6 9. a4 Ne4 10. Be1 f5 11. b5 Bd6 12. Qc2 Qe7 13. Nc3 g5 14. Rb1 g4 15. Nd2 Nxc3 16. Qxc3 {0-1 (63) So,W (2780)-Wei,Y (2729) chess.com INT 2018}) 6. Nxd2 {[%emt 0:00:11]} b6 {[%emt 0:00:12]} 7. e3 $146 {[%emt 0:00:07]} ({Predecessor:} 7. Ngf3 Bb7 8. Qa4+ Nbd7 9. Ne5 O-O 10. Nxd7 Qxd7 11. Qxd7 {½-½ (11) Condori Aranya,E (2210)-Iturry,W (2241) Ilo Moquegua 2012}) 7... Ba6 {[%emt 0:00:08]} 8. Rc1 {[%emt 0:05:18]} c6 {[%emt 0:00:22]} 9. Ngf3 {[%emt 0:00:23]} O-O {[%emt 0:00:06]} 10. O-O {[%emt 0:00:36]} Ne4 {[%emt 0:01:05]} (10... Bb7 $11 {remains equal.}) 11. Nxe4 {[%emt 0:03:44]} dxe4 {[%emt 0:00:04]} 12. Nd2 {[%emt 0:01:57]} f5 {[%emt 0:00:06]} 13. f3 {[%emt 0:03:33]} exf3 {[%emt 0:00:55]} 14. Nxf3 {[%emt 0:00:50]} Nd7 {[%emt 0:00:48]} 15. Qe2 {[%emt 0:01:53]} (15. Ne1 $16) 15... Rc8 {[%emt 0:00:51]} 16. Rfd1 {[%emt 0:00:31]} Qc7 {[%emt 0:01:17]} 17. e4 {[%emt 0:03:56]} f4 {[%emt 0:01:51]} 18. e5 {[%emt 0:00:37]} fxg3 {[%emt 0:00:04]} 19. hxg3 {[%emt 0:00:04]} h6 {[%emt 0:02:45]} 20. Nh4 {[%emt 0:04:45]} c5 {[%emt 0:01:22]} 21. Ng6 {[%emt 0:01:04]} Rfe8 {[%emt 0:00:06]} 22. d5 $18 {[%emt 0:01:05]} Rcd8 {[%emt 0:03:44]} 23. d6 {[%emt 0:01:12]} Qb8 {[%emt 0:00:19]} 24. Ne7+ {[%emt 0:00:09]} Kh8 {[%emt 0:00:16]} 25. Nc6 {[%emt 0:01:22]} Qa8 {[%emt 0:00:14]} 26. Rf1 {[%emt 0:06:10]} Rc8 {[%emt 0:01:58]} 27. Ne7 {[%emt 0:00:11]} Bb7 {[%emt 0:00:07]} 28. Bxb7 {[%emt 0:00:57]} Qxb7 {[%emt 0:00:05]} 29. Nxc8 {[%emt 0:00:15]} Qxc8 {[%emt 0:00:10]} 30. Rf7 {[%emt 0:00:29]} Qd8 {[%emt 0:00:21]} 31. Qg4 {[%emt 0:00:30]} Rg8 {[%emt 0:00:20]} 32. Qxe6 {[%emt 0:00:33]} Qg5 {[%emt 0:00:09]} 33. Rc3 {[%emt 0:00:37]} Nb8 {[%emt 0:05:13]} 34. Qf5 {[%emt 0:00:30]} Qd2 {[%emt 0:00:15]} 35. Qf2 {[%emt 0:00:08]} Qd1+ {[%emt 0:00:28]} 36. Kg2 {[%emt 0:01:01]} Nc6 {[%emt 0:00:13]} 37. Re3 {[%emt 0:07:04]} Qd4 {[%emt 0:00:52]} 38. Rf4 {[%emt 0:00:09]} Qd1 {[%emt 0:00:14]} 39. Qf3 {[%emt 0:02:02]} Qd2+ {[%emt 0:01:14]} 40. Re2 {[%emt 0:00:00]} Qd1 {[%emt 0:00:00]} 41. Rf2 {[%emt 0:03:04]} Qxf3+ {[%emt 0:00:18]} 42. R4xf3 {[%emt 0:00:25]} Nxe5 {[%emt 0:00:02]} 43. Rf8 {[%emt 0:00:08]} Nd7 {[%emt 0:00:45]} 44. Rxg8+ {[%emt 0:00:17]} Kxg8 {[%emt 0:00:03]} 45. Kf1 {[%emt 0:00:11]} g5 {[%emt 0:00:31]} 46. Ke2 {[%emt 0:00:30]} Kg7 {[%emt 0:00:31]} 47. Kd3 {[%emt 0:03:56]} Nf6 {[%emt 0:05:13]} 48. Re2 {[%emt 0:00:19]} h5 {[%emt 0:00:51]} 49. d7 {[%emt 0:00:59]} Nxd7 {[%emt 0:00:07]} 50. Re7+ {[%emt 0:00:04]} Kg6 {[%emt 0:00:03]} 51. Rxd7 {[%emt 0:00:06]} h4 {[%emt 0:00:04]} 52. gxh4 {[%emt 0:00:14]} gxh4 {[%emt 0:00:01]} 53. Ke4 {[%emt 0:00:31]} 1-0

[Event "EYCC Open U12 2018"]
[Site "Riga"]
[Date "2018.08.20"]
[Round "1"]
[White "Grebnev, Aleksey"]
[Black "Akulov, Mikhail"]
[Result "1-0"]
[ECO "B80"]
[WhiteElo "2143"]
[BlackElo "1663"]
[Annotator "NA"]
[PlyCount "139"]
[EventDate "2018.08.20"]
[EventType "swiss"]
[EventCountry "LAT"]
[SourceTitle "playchess.com"]
[Source "ChessBase"]
[SourceQuality "1"]
[TimeControl "40/5400+30:1800+30"]

1. e4 {[%emt 0:00:00]} c5 {[%emt 0:00:00]} 2. Nf3 {[%emt 0:00:00]} e6 {[%emt 0:00:38]} 3. d4 {[%emt 0:00:01]} cxd4 {[%emt 0:00:21]} 4. Nxd4 {[%emt 0:00:16]} Nf6 {[%emt 0:00:35]} 5. Nc3 {[%emt 0:01:27]} d6 {[%emt 0:00:41]} 6. Be3 {[%emt 0:00:20]} a6 {[%emt 0:01:01]} 7. f3 {[%emt 0:06:53]} Be7 {[%emt 0:02:42]} 8. Qd2 {[%emt 0:00:56]} Nc6 {[%emt 0:03:46]} 9. g4 {[%emt 0:02:51]} Qc7 {[%emt 0:02:32] LiveBook: 51 Games} 10. g5 {[%emt 0:01:20]} Nd7 {[%emt 0:03:41]} 11. f4 $11 {[%emt 0:05:34]} (11. O-O-O $16) 11... b5 {[%emt 0:09:17]} 12. Bg2 {[%emt 0:06:22]} Bb7 {[%emt 0:01:02]} 13. f5 {[%emt 0:10:41]} Nc5 {[%emt 0:10:19]} 14. O-O {[%emt 0:14:06]} Ne5 {[%emt 0:14:41]} 15. b4 {[%emt 0:05:46]} Nc4 {[%emt 0:06:46]} 16. Qe2 {[%emt 0:00:14]} Nxe3 {[%emt 0:05:48]} 17. Qxe3 {[%emt 0:00:02]} e5 {[%emt 0:01:33]} 18. Ndxb5 {[%emt 0:09:03]} axb5 {[%emt 0:04:40]} 19. bxc5 {[%emt 0:00:58]} Bxg5 {[%emt 0:05:12]} 20. Qxg5 {[%emt 0:00:32]} Qxc5+ {[%emt 0:02:02]} 21. Kh1 {[%emt 0:00:38]} Qxc3 {[%emt 0:00:53]} 22. Qxg7 {[%emt 0:01:34]} Rf8 {[%emt 0:00:09]} 23. Rad1 {[%emt 0:01:31]} Qc5 {[%emt 0:10:15]} 24. Rd2 {[%emt 0:05:32]} Rxa2 {[%emt 0:02:25]} 25. Rfd1 {[%emt 0:01:07]} Rxc2 {[%emt 0:07:49]} 26. Rxd6 {[%emt 0:01:47]} Qxd6 {[%emt 0:00:12]} 27. Rxd6 {[%emt 0:00:06]} Rc1+ {[%emt 0:00:11]} 28. Bf1 {[%emt 0:00:05]} Rxf1+ {[%emt 0:00:10]} 29. Kg2 {[%emt 0:00:24]} Rxf5 {[%emt 0:00:31]} 30. Rd5 {[%emt 0:06:19]} Bxd5 {[%emt 0:01:15]} 31. exd5 {[%emt 0:00:02]} h6 {[%emt 0:00:52]} 32. h4 {[%emt 0:00:24]} e4 {[%emt 0:00:50]} 33. d6 {[%emt 0:00:15]} Rd5 {[%emt 0:00:20]} 34. Qf6 {[%emt 0:01:04]} Rg8+ {[%emt 0:01:16]} 35. Kf1 {[%emt 0:00:10]} Rxd6 36. Qxd6 {[%emt 0:00:07]} Rg6 {[%emt 0:02:11]} 37. Qb8+ {[%emt 0:00:10]} Ke7 {[%emt 0:00:17]} 38. Qb7+ {[%emt 0:00:33]} Kf6 {[%emt 0:00:39]} 39. Qxe4 {[%emt 0:00:27]} Kg7 {[%emt 0:00:23]} 40. Qe5+ {[%emt 0:00:00]} Kg8 {[%emt 0:00:00]} 41. Qxb5 {[%emt 0:00:23]} Rf6+ {[%emt 0:01:54]} 42. Kg2 {[%emt 0:00:08]} Rg6+ {[%emt 0:00:07]} 43. Kf3 {[%emt 0:00:06]} Rf6+ {[%emt 0:00:05]} 44. Ke4 {[%emt 0:00:10]} Re6+ {[%emt 0:00:20]} 45. Kf5 {[%emt 0:00:12]} Rg6 {[%emt 0:00:31]} 46. Qe5 {[%emt 0:00:36]} Re6 {[%emt 0:00:51]} 47. Qb8+ {[%emt 0:00:13]} Kg7 {[%emt 0:00:43]} 48. h5 {[%emt 0:00:16]} Rf6+ {[%emt 0:00:14]} 49. Ke5 {[%emt 0:00:05]} Re6+ {[%emt 0:00:09]} 50. Kd5 {[%emt 0:00:06]} Ra6 {[%emt 0:01:13]} 51. Qe5+ {[%emt 0:00:33]} Kg8 {[%emt 0:00:57]} 52. Qg3+ {[%emt 0:00:47]} Kf8 {[%emt 0:00:24]} 53. Qd3 {[%emt 0:01:18]} Ra5+ {[%emt 0:03:17]} 54. Kd6 {[%emt 0:00:09]} Kg8 {[%emt 0:03:35]} 55. Qe2 {[%emt 0:01:45]} Kg7 {[%emt 0:02:26]} 56. Qg4+ {[%emt 0:00:35]} Rg5 {[%emt 0:02:58]} 57. Qd4+ {[%emt 0:00:32]} Kg8 {[%emt 0:01:01]} 58. Ke7 {[%emt 0:00:12]} Rxh5 {[%emt 0:01:38]} 59. Qd8+ {[%emt 0:00:14]} Kh7 {[%emt 0:01:31]} 60. Kxf7 {[%emt 0:00:10]} Rf5+ {[%emt 0:00:58]} 61. Ke6 {[%emt 0:00:10]} Rg5 {[%emt 0:00:20]} 62. Qd3+ {[%emt 0:01:29]} Kg7 {[%emt 0:01:09]} 63. Qd4+ {[%emt 0:00:15]} Kg6 {[%emt 0:00:38]} 64. Qe4+ {[%emt 0:00:28]} Kg7 {[%emt 0:00:22]} 65. Qf4 {[%emt 0:00:06]} Kh7 {[%emt 0:00:41]} 66. Qe4+ {[%emt 0:00:20]} Kg7 {[%emt 0:00:14]} 67. Ke7 {[%emt 0:00:07]} Kh8 {[%emt 0:01:07]} 68. Qe6 {[%emt 0:00:22]} Rg7+ {[%emt 0:00:24]} 69. Kf8 {[%emt 0:00:17]} Kh7 {[%emt 0:01:25]} 70. Qf5+ {[%emt 0:00:09]} 1-0

[Event "EYCC Open U12 2018"]
[Site "Riga"]
[Date "2018.08.20"]
[Round "1"]
[White "Backiel, Hubert"]
[Black "Makoveev, Ilya"]
[Result "0-1"]
[ECO "A15"]
[WhiteElo "1675"]
[BlackElo "2249"]
[Annotator "NA"]
[PlyCount "92"]
[EventDate "2018.08.20"]
[EventType "swiss"]
[EventCountry "LAT"]
[SourceTitle "playchess.com"]
[Source "ChessBase"]
[SourceQuality "1"]
[TimeControl "40/5400+30:1800+30"]

1. c4 {[%emt 0:00:00]} Nf6 {[%emt 0:00:29]} 2. Nf3 {[%emt 0:00:00]} g6 {[%emt 0:01:03]} 3. g3 {[%emt 0:00:51]} Bg7 {[%emt 0:00:23]} 4. Bg2 {[%emt 0:00:26]} O-O {[%emt 0:00:20]} 5. O-O {[%emt 0:00:09]} d5 {[%emt 0:00:24]} 6. cxd5 {[%emt 0:00:43]} Nxd5 {[%emt 0:00:02] LiveBook: 838 Games} 7. Nc3 {[%emt 0:00:34]} Nb6 {[%emt 0:02:02]} 8. d3 {[%emt 0:18:10]} Nc6 {[%emt 0:06:56]} 9. Be3 {[%emt 0:06:34]} e5 {[%emt 0:02:26]} 10. Nd2 {[%emt 0:05:00]} Nd4 {[%emt 0:05:51]} 11. Rc1 {[%emt 0:07:46]} c6 {[%emt 0:01:51]} 12. Nb3 Qe7 {[%emt 0:09:06]} 13. Ne4 {[%emt 0:19:48]} Nd5 {[%emt 0:02:42]} 14. Bd2 $11 {[%emt 0:06:29]} Re8 {[%emt 0:13:26]} 15. e3 {[%emt 0:03:31]} Nxb3 {[%emt 0:09:04]} 16. Qxb3 {[%emt 0:01:03]} Be6 {[%emt 0:00:27]} 17. Qc2 {[%emt 0:03:41]} Rad8 {[%emt 0:07:11]} 18. Nc5 {[%emt 0:02:17]} Bc8 {[%emt 0:00:18]} 19. Nb3 {[%emt 0:02:01]} Nb4 {[%emt 0:03:24]} 20. Bxb4 {[%emt 0:00:30]} Qxb4 {[%emt 0:00:01]} 21. Rfd1 {[%emt 0:01:03]} Bg4 {[%emt 0:10:26]} 22. Rd2 {[%emt 0:01:17]} Re7 {[%emt 0:08:13]} 23. h3 {[%emt 0:02:51]} Bf5 {[%emt 0:00:26]} 24. Qc5 {[%emt 0:04:54]} Qxc5 {[%emt 0:00:22]} 25. Nxc5 {[%emt 0:00:10]} b6 {[%emt 0:01:40]} 26. Ne4 {[%emt 0:00:07]} c5 {[%emt 0:00:50]} 27. Kf1 {[%emt 0:01:06]} Bc8 {[%emt 0:01:54]} 28. Nc3 {[%emt 0:04:26]} Red7 {[%emt 0:01:03]} 29. Ke2 {[%emt 0:01:42]} Ba6 {[%emt 0:00:31]} 30. Rcd1 {[%emt 0:00:40]} Rd6 {[%emt 0:07:31]} 31. Ne4 {[%emt 0:00:46]} Re6 {[%emt 0:00:17]} 32. Nc3 {[%emt 0:00:34]} Red6 {[%emt 0:01:17]} 33. Ne4 {[%emt 0:00:06]} R6d7 {[%emt 0:00:07]} 34. Nc3 {[%emt 0:00:06]} Bc8 {[%emt 0:03:12]} 35. Rh1 {[%emt 0:03:04]} Kf8 {[%emt 0:00:46]} 36. Bc6 {[%emt 0:01:10]} Rd6 {[%emt 0:00:17]} 37. Bg2 {[%emt 0:00:21]} Ba6 {[%emt 0:01:12]} 38. Rhd1 {[%emt 0:00:21]} f5 {[%emt 0:00:05]} 39. Bf1 {[%emt 0:03:19]} e4 {[%emt 0:00:57]} 40. Ke1 {[%emt 0:00:00]} exd3 {[%emt 0:00:00]} 41. Rc1 {[%emt 0:01:50]} Bb7 {[%emt 0:08:27]} 42. f4 {[%emt 0:05:36]} c4 {[%emt 0:03:05]} 43. Kf2 {[%emt 0:01:03]} Re6 {[%emt 0:04:56]} 44. b3 {[%emt 0:02:30]} Rxe3 {[%emt 0:00:43]} 45. bxc4 {[%emt 0:00:46]} Bd4 {[%emt 0:00:18]} 46. Kg1 {[%emt 0:00:11]} Re2# 0-1

[Event "EYCC Open U12 2018"]
[Site "Riga"]
[Date "2018.08.20"]
[Round "1"]
[White "Triboi, Alexander"]
[Black "Chyzy, Jakub"]
[Result "0-1"]
[ECO "D00"]
[WhiteElo "1670"]
[BlackElo "2143"]
[Annotator "NA"]
[PlyCount "72"]
[EventDate "2018.08.20"]
[EventType "swiss"]
[EventCountry "LAT"]
[SourceTitle "playchess.com"]
[Source "ChessBase"]
[SourceQuality "1"]
[TimeControl "40/5400+30:1800+30"]

1. d4 {[%emt 0:00:00]} d5 {[%emt 0:00:00]} 2. Bf4 {[%emt 0:00:00]} Nf6 {[%emt 0:00:05]} 3. e3 {[%emt 0:00:00]} e6 {[%emt 0:00:18]} 4. Nf3 {[%emt 0:00:24]} Be7 {[%emt 0:02:58]} 5. h3 {[%emt 0:00:09]} O-O {[%emt 0:00:18]} 6. Bd3 {[%emt 0:00:04]} c5 {[%emt 0:00:19]} 7. c3 {[%emt 0:00:05]} Nc6 {[%emt 0:01:20] LiveBook: 5 Games} 8. O-O {[%emt 0:00:52]} c4 {[%emt 0:02:25]} 9. Bc2 {[%emt 0:00:52]} b5 {[%emt 0:00:40]} 10. Nbd2 {[%emt 0:06:41]} a5 {[%emt 0:02:18]} 11. e4 {[%emt 0:14:14]} dxe4 {[%emt 0:07:35]} 12. Nxe4 {[%emt 0:00:15]} Nd5 $11 {[%emt 0:01:36]} 13. Bh2 {[%emt 0:03:39]} f5 {[%emt 0:01:17]} 14. Ned2 {[%emt 0:05:52]} Bd6 {[%emt 0:04:34]} 15. Bxd6 {[%emt 0:05:22]} Qxd6 {[%emt 0:00:06]} 16. a4 {[%emt 0:00:58]} Ba6 {[%emt 0:17:22]} 17. axb5 {[%emt 0:04:43]} Bxb5 {[%emt 0:00:06]} 18. Ba4 {[%emt 0:04:06]} Ba6 {[%emt 0:08:49]} 19. Bxc6 {[%emt 0:08:29]} Qxc6 {[%emt 0:00:09]} 20. Rxa5 {[%emt 0:01:07]} Nf4 {[%emt 0:02:17]} 21. Rc5 {[%emt 0:03:50]} Qb7 {[%emt 0:00:59]} 22. Nxc4 {[%emt 0:07:50]} Rf6 {[%emt 0:01:53]} 23. Kh2 {[%emt 0:03:07]} Rh6 {[%emt 0:13:22]} 24. Rg1 {[%emt 0:04:17]} Rc8 {[%emt 0:30:34]} 25. Nd6 {[%emt 0:01:02]} Qb8 {[%emt 0:00:10]} 26. Ne5 {[%emt 0:12:33]} Qxd6 {[%emt 0:00:11]} 27. Qa4 {[%emt 0:00:40]} Ng6 {[%emt 0:01:07]} 28. Ra5 {[%emt 0:01:34]} Bb7 {[%emt 0:00:31]} 29. Re1 {[%emt 0:01:33]} Nf4 {[%emt 0:00:32]} 30. f3 {[%emt 0:00:51]} Bxf3 {[%emt 0:00:34]} 31. gxf3 {[%emt 0:00:43]} Rxh3+ {[%emt 0:00:05]} 32. Kg1 {[%emt 0:00:13]} Qe7 {[%emt 0:00:39]} 33. Qd7 {[%emt 0:01:14]} Rh1+ {[%emt 0:00:11]} 34. Kf2 {[%emt 0:00:57]} Qh4+ {[%emt 0:00:11]} 35. Ke3 {[%emt 0:00:03]} Rxe1+ {[%emt 0:00:09]} 36. Kd2 {[%emt 0:00:04]} Qf2# {[%emt 0:00:06]} 0-1

[Event "EYCC Open U12 2018"]
[Site "Riga"]
[Date "2018.08.21"]
[Round "2"]
[White "Aguado Doncel, Pablo Luis"]
[Black "Grebnev, Aleksey"]
[Result "0-1"]
[ECO "E91"]
[WhiteElo "1867"]
[BlackElo "2143"]
[Annotator "NA RC"]
[PlyCount "52"]
[EventDate "2018.08.20"]
[EventType "swiss"]
[EventCountry "LAT"]
[SourceTitle "playchess.com"]
[Source "ChessBase"]
[SourceQuality "1"]
[TimeControl "40/5400+30:1800+30"]

1. d4 {[%emt 0:00:00]} Nf6 {[%emt 0:00:00]} 2. c4 {[%emt 0:00:01]} g6 {[%emt 0:00:00]} 3. Nc3 {[%emt 0:00:26]} Bg7 {[%emt 0:00:00]} 4. e4 {[%emt 0:00:46]} d6 {[%emt 0:00:00]} 5. Nf3 {[%emt 0:00:40]} O-O {[%emt 0:03:42]} 6. Be2 {[%emt 0:00:30]} Nbd7 {[%emt 0:00:07]} 7. O-O {[%emt 0:10:24]} e5 {[%emt 0:00:29]} 8. d5 {[%emt 0:00:04]} Nc5 {[%emt 0:00:22]} 9. Nd2 {[%emt 0:02:45]} a5 {[%emt 0:00:48]} 10. b3 {[%emt 0:01:01]} Ne8 {[%emt 0:01:50]} 11. a3 {[%emt 0:01:35]} f5 {[%emt 0:00:08]} 12. f3 {[%emt 0:00:37]} Bh6 {[%emt 0:01:26]} 13. Rb1 {[%emt 0:04:18]} Be3+ {[%emt 0:01:56]} 14. Kh1 {[%emt 0:00:29]} f4 {[%emt 0:00:27]} 15. b4 {[%emt 0:00:42]} Na6 $11 {[%emt 0:00:44]} 16. c5 {[%emt 0:15:07]} dxc5 {[%emt 0:00:49]} 17. b5 {[%emt 0:11:29]} Nb8 {[%emt 0:00:20]} 18. Nc4 {[%emt 0:01:43]} Bd4 {[%emt 0:01:25]} 19. Na4 {[%emt 0:08:54]} Qh4 {[%emt 0:03:15]} 20. d6 {[%emt 0:02:00]} Rf6 {[%emt 0:07:12]} 21. dxc7 {[%emt 0:10:58]} g5 {[%emt 0:00:54]} 22. Ne3 {[%emt 0:06:55]} Rh6 {[%emt 0:01:00]} 23. Bc4+ {[%emt 0:05:20]} Kh8 {[%emt 0:01:04]} 24. Kg1 {[%emt 0:02:47]} fxe3 {[%emt 0:01:22]} 25. Re1 {[%emt 0:03:15]} e2+ {[%emt 0:00:09]} 26. Qxd4 {[%emt 0:00:01]} Qxe1# {[%emt 0:00:09]} 0-1

[Event "EYCC Open U12 2018"]
[Site "Riga"]
[Date "2018.08.22"]
[Round "3"]
[White "Murzin, Volodar"]
[Black "Ristic, Luka"]
[Result "1-0"]
[ECO "B06"]
[WhiteElo "2306"]
[BlackElo "2005"]
[Annotator "NA"]
[PlyCount "79"]
[EventDate "2018.08.20"]
[EventType "swiss"]
[EventCountry "LAT"]
[SourceTitle "playchess.com"]
[Source "ChessBase"]
[SourceQuality "1"]
[TimeControl "40/5400+30:1800+30"]

1. e4 {[%emt 0:00:00]} g6 {[%emt 0:00:00]} 2. d4 {[%emt 0:00:00]} Bg7 {[%emt 0:00:00]} 3. Nf3 {[%emt 0:00:31]} c6 {[%emt 0:00:09]} 4. Bd3 {[%emt 0:01:02]} d5 {[%emt 0:00:17]} 5. Nbd2 {[%emt 0:02:16]} dxe4 {[%emt 0:00:26]} 6. Nxe4 {[%emt 0:00:35]} Nf6 {[%emt 0:00:25]} 7. O-O {[%emt 0:00:54]} O-O {[%emt 0:00:40]} 8. c3 {[%emt 0:00:27]} Nbd7 {[%emt 0:01:00]} 9. h3 {[%emt 0:02:31]} Nxe4 {[%emt 0:05:58]} 10. Bxe4 {[%emt 0:00:01]} e5 {[%emt 0:00:21]} 11. Be3 {[%emt 0:10:31] B15: Caro-Kann: 3 Nc3: 3...g6 and 3...dxe4 4 Nxe4 Nf6 5 Nxf6+ exf6} Qe7 $146 {[%emt 0:11:26]} ({Predecessor:} 11... exd4 12. Bxd4 Nf6 13. Bc2 b6 14. Be5 Bb7 15. Nd4 Qd5 16. f4 c5 17. Nf3 Rad8 18. Qe1 Nh5 {0-1 (35) Sengupta,D (2575)-Cheng,B (2446) Hastings 2016}) 12. dxe5 {[%emt 0:12:31]} Nxe5 {[%emt 0:00:13]} 13. Re1 {[%emt 0:01:07]} Nxf3+ {[%emt 0:02:39]} 14. Qxf3 {[%emt 0:01:51]} Be6 {[%emt 0:01:06]} 15. a4 {[%emt 0:00:17]} f5 {[%emt 0:03:33]} 16. Bc2 {[%emt 0:00:45]} Bd5 {[%emt 0:00:45]} 17. Qf4 {[%emt 0:08:48]} Rae8 {[%emt 0:03:08]} 18. Bd4 {[%emt 0:04:06]} Qxe1+ {[%emt 0:06:49]} 19. Rxe1 {[%emt 0:00:03]} Rxe1+ {[%emt 0:00:06]} 20. Kh2 {[%emt 0:00:06]} Bxd4 {[%emt 0:01:38]} 21. Qxd4 {[%emt 0:00:03]} Rfe8 {[%emt 0:00:50]} 22. Bd1 {[%emt 0:02:53]} Rf1 {[%emt 0:05:00]} (22... R8e7 $11 {remains equal.}) 23. Bf3 {[%emt 0:01:14]} Bf7 $2 {[%emt 0:01:02]} (23... Re7 $16 {was worth a try.}) 24. Qxa7 {[%emt 0:03:09]} Ree1 {[%emt 0:00:51]} 25. g4 {[%emt 0:04:52]} fxg4 {[%emt 0:04:43]} (25... Re7 $142 26. gxf5 gxf5) 26. hxg4 {[%emt 0:00:02]} (26. Bg2 $18 {and the rest is easy.}) 26... Rb1 {[%emt 0:01:35]} 27. Bg2 {[%emt 0:08:02]} Rfe1 {[%emt 0:03:20]} 28. Qxb7 {[%emt 0:10:56]} Re2 $18 {[%emt 0:00:30]} 29. Qb8+ {[%emt 0:01:59]} Kg7 {[%emt 0:00:19]} 30. Qa7 {[%emt 0:01:55]} Rbxb2 {[%emt 0:01:08]} 31. Kg3 {[%emt 0:00:10]} Red2 {[%emt 0:09:17]} 32. Bxc6 {[%emt 0:00:39]} h5 {[%emt 0:00:35]} 33. c4 {[%emt 0:01:47]} h4+ {[%emt 0:00:20]} 34. Kxh4 {[%emt 0:00:19]} Rxf2 {[%emt 0:00:16]} 35. Bd5 {[%emt 0:00:38]} Kg8 {[%emt 0:03:57]} 36. Kg5 {[%emt 0:00:45]} Rbe2 {[%emt 0:01:04]} 37. Qb8+ {[%emt 0:02:21]} Kg7 {[%emt 0:00:13]} 38. a5 {[%emt 0:01:06]} Rf6 {[%emt 0:01:27]} 39. a6 {[%emt 0:03:26]} Re8 {[%emt 0:00:49]} 40. Qb2 {[%emt 0:00:00]} 1-0